Cogmind - Beta 16.1 @@@ ROGUE MODE // 2026.04.27 @ 17:48:17 Player: Bereft Result: Destroyed by as-07836 with Assembled Maul Performance ------------- Evolutions (0) 0 Regions Visited (3) 600 Robots Destroyed (14) 70 Value Destroyed (225) 225 Prototype IDs (0) 0 Alien Tech Used (0) 0 Bonus (-45) -45 TOTAL SCORE: 850 Bonus ------- Friendly Fire -45 Cogmind --------- Core Integrity 0/250 Matter 293/300 Energy 100/100 System Corruption 0% Temperature Cool (0) Movement Core (1350) Ox26 Location -10/Exiles Parts ------- > --- POWER (1) -------- (None) > --- PROPULSION (2) --- (None) > --- UTILITY (2) ------ Huge Storage Unit > --- WEAPON (2) ------- (None) > --- INVENTORY (25) --- Ion Engine Medium Matter Pod (100) Structural Scanner ECM Suite Particle Gun Peak State ------------ > --- POWER ------------ Light Angular Momentum Engine > --- PROPULSION ------- Light Treads Light Treads > --- UTILITY ---------- Huge Storage Unit Seismic Detector > --- WEAPON ----------- Particle Gun Plasma Flamer > --- INVENTORY -------- Ion Engine Light Ion Engine Medium Matter Pod Structural Scanner ECM Suite Small Laser Light Assault Rifle Light Assault Rifle [Rating: 16] Favorites ----------- Power Light Nuclear Core Engine Light Ion Engine Power Core Light Nuclear Core Propulsion Light Treads Treads Light Treads Utility Seismic Detector Device Seismic Detector Storage Small Storage Unit Weapon Light Assault Rifle Energy Gun Small Laser Ballistic Gun Light Assault Rifle Special Weapon Plasma Flamer Build | -11 -10 -10 -10 ------- Run | Yrd Mat Min Exi Slots Evolved . | . . . . Power . | . . . . Propulsion . | . . . . Utility . | . . . . Weapon . | . . . . Parts Attached 18 | 8 2 8 . Power 4 | 1 2 1 . Engine 3 | 1 1 1 . Core 1 | . 1 . . Reactor . | . . . . Propulsion 2 | 2 . . . Treads 2 | 2 . . . Leg . | . . . . Wheel . | . . . . Hover . | . . . . Flight . | . . . . Utility 3 | 2 . 1 . Device 1 | 1 . . . Storage 2 | 1 . 1 . Processor . | . . . . Hackware . | . . . . Protection . | . . . . Artifact . | . . . . Weapon 9 | 3 . 6 . Energy Gun 3 | 1 . 2 . Energy Cannon . | . . . . Ballistic Gun 5 | 2 . 3 . Ballistic Cannon . | . . . . Launcher . | . . . . Special Weapon 1 | . . 1 . Impact Weapon . | . . . . Slashing Weapon . | . . . . Piercing Weapon . | . . . . Special Melee Weapon . | . . . . Unidentified Prototypes . | . . . . Parts Lost 8 | . 1 3 4 Power 1 | . . 1 . Propulsion 2 | . . 1 1 Utility 1 | . . . 1 Weapon 4 | . 1 1 2 Highest Loss Streak 4 | . 1 2 4 To Critical Strikes 4 | . . . 4 Average Backups 6 | 1 6 7 5 Power 1 | . 2 1 1 Propulsion . | . . . . Utility 1 | . . 2 3 Weapon 2 | 1 3 3 1 Tool/Special . | . . . . Unused Backups 8 | . 3 . 5 Power 4 | . 2 . 2 Propulsion . | . . . . Utility 3 | . . . 3 Weapon 1 | . 1 . . Tool/Special . | . . . . Average Slot Usage (%) 93 | . 99 95 75 Engine 7 | . 3 9 6 Core 5 | . 10 4 . Treads 24 | . 28 26 13 Device 14 | . 14 14 14 Storage 14 | . 14 14 14 Energy Gun 7 | . 3 10 . Ballistic Gun 16 | . 24 9 27 Special Weapon 3 | . . 5 . Peak Build Rating 16 | 7 9 16 6 Average Rating 9 | 5 8 11 5 On Entrance 5 | . 7 9 6 Avg Prop Armor Cover (%) . | . . . . Naked Turns . | . . . . Heaviest Build 96 | 11 13 96 86 Greatest Support 40 | 40 40 40 20 Greatest Overweight (x) 27 | . . 4 27 Average Overweight (x) . | . . . 4 Largest Inventory Capacity 25 | 8 8 25 25 Average Capacity 14 | 7 8 17 25 Most Carried 9 | 3 8 9 6 Average Carried 6 | 1 6 7 5 Final Capacity 25 | 8 8 25 25 Final Carried 8 | 2 8 5 5 Class Distribution -------------------- 96% | Mutant 3% | Scavenger-Mutant Dominant Class ---------------- Mutant | -10/Materials Mutant | -10/Mines Mutant | -10/Exiles Resources | -11 -10 -10 -10 ----------- Run | Yrd Mat Min Exi Matter Collected 578 | 188 201 189 . Remotely . | . . . . Salvage Created 439 | 23 239 177 . Parts 28 | 2 20 6 . Haulers Intercepted . | . . . . Recyclers Shooed 2 | . 2 . . Parts Field Recycled . | . . . . Retrieved Matter . | . . . . Parts Self-Destructed . | . . . . Prevented . | . . . . Parts Restored . | . . . . Kills | -11 -10 -10 -10 ------- Run | Yrd Mat Min Exi Combat Hostiles Destroyed 15 | . 7 8 . Guns 14 | . 7 7 . Cannons 1 | . . 1 . Classes Destroyed 5 | 1 2 2 . Worker 2 | . . 2 . Tunneler 2 | 1 . 1 . Swarmer 6 | . 3 3 . Grunt 4 | . 4 . . Assembled 5 | . . 5 . Best Kill Streak 3 | 1 3 3 . Combat Bots Only 3 | . 3 3 . Max Kills in Single Turn 1 | 1 1 1 . Gunslinging . | . . . . Exploded . | . . . . Melee . | . . . . Uniques/NPCs Destroyed . | . . . . Combat | -11 -10 -10 -10 -------- Run | Yrd Mat Min Exi Hostile Shots Fired 122 | . 58 37 27 Missed 39 | . 23 5 11 Hits 83 | . 35 32 16 Melee 6 | . . 5 1 Projectile 77 | . 35 27 15 Critical Strikes 7 | . 2 . 5 Damage Taken 1119 | . 391 418 310 Core 285 | . 86 96 103 Absorbed by Shields . | . . . . Core Remaining (%) 100 | 100 . . . Volleys Fired 82 | 1 49 27 5 Largest 2 | 2 2 2 2 Hottest 165 | 40 60 165 40 Shots Fired 152 | 2 97 46 7 Gun 146 | 2 97 40 7 Cannon . | . . . . Launcher . | . . . . Special 6 | . . 6 . Kinetic 113 | 2 91 13 7 Thermal 39 | . 6 33 . Explosive . | . . . . Electromagnetic . | . . . . Robot Hit Streak 12 | 1 5 12 5 Robot Miss Streak 4 | . 3 4 1 Penetration Max . | . . . . Secondary Targets 1 | . 1 . . Max Gunslinging Chain 1 | . 1 . . Shots Hit Robots 85 | 1 49 29 6 Core Hits 38 | 1 18 18 1 Critical Kills 1 | . 1 . . Critical Parts Destroyed 1 | . 1 . . Critical Strikes 4 | . 2 1 1 Burn 1 | . . 1 . Destroy 3 | . 2 . 1 Melee Attacks . | . . . . Impact . | . . . . Slashing . | . . . . Piercing . | . . . . Sneak Attacks . | . . . . Combat Hostiles . | . . . . Follow-up Attacks . | . . . . Damage Inflicted 818 | 10 398 362 48 Guns 776 | 10 398 320 48 Cannons . | . . . . Explosions . | . . . . Melee . | . . . . Ramming 1 | . . 1 . Kinetic 478 | 10 354 66 48 Thermal 339 | . 44 295 . Explosive . | . . . . Electromagnetic . | . . . . Impact . | . . . . Slashing . | . . . . Piercing . | . . . . Highest Corruption . | . . . . Average Corruption . | . . . . Corruption Purged . | . . . . Corruption Blocked . | . . . . Overload Shots . | . . . . Overflow Damage . | . . . . Projectiles . | . . . . Explosions . | . . . . Melee . | . . . . Knockbacks . | . . . . Impact . | . . . . Kinetic . | . . . . Secondary . | . . . . Self-Inflicted Damage . | . . . . Shots . | . . . . Rammed 1 | . . 1 . Targets Rammed 1 | . . 1 . Kicked . | . . . . Crushed . | . . . . Highest Temperature 209 | . 72 209 . Average Temperature 38 | . 15 59 . Received Heat Transfer 267 | . 207 40 20 Siege Activations . | . . . . Martial Activations . | . . . . Shielding Activations . | . . . . Robots Disrupted 1 | . . 1 . Combat Hostiles . | . . . . Robots Corrupted . | . . . . Combat Hostiles . | . . . . Parts Fried . | . . . . Impact Corruptions . | . . . . Robots Melted . | . . . . Combat Hostiles . | . . . . Parts Melted . | . . . . Heat Transferred 1061 | . 100 961 . Parts Sabotaged . | . . . . Parts Stolen . | . . . . Parts Stripped . | . . . . Power Chain Reactions . | . . . . Alert | -11 -10 -10 -10 ------- Run | Yrd Mat Min Exi Maximum Alert Level . | . . . . Low Security (%) 100 | 100 100 100 . Level 1 . | . . . . Level 2 . | . . . . Level 3 . | . . . . Level 4 . | . . . . Level 5 . | . . . . High Security . | . . . . Max Security . | . . . . Peak Influence 85 | 5 85 62 . Initial 7 | . . 7 . Average 18 | . 50 6 . Influence Increases 291 | 5 201 85 . Destroy 0b10 Robot/C 200 | . 140 60 . Destroy 0b10 Robot/NC 20 | 5 . 15 . Destroy Leader 50 | . 40 10 . Successful Hack 6 | . 6 . . Lose Combat Pursuer 15 | . 15 . . Influence Decreases 291 | 5 180 86 20 Entered New Map 34 | . . 14 20 Time Decay 237 | 5 170 62 . Lost Part 10 | . 10 . . Lost Ally 10 | . . 10 . Squads Dispatched 2 | . 2 . . Investigation 1 | . 1 . . Extermination . | . . . . Reinforcement 1 | . 1 . . Assault . | . . . . Garrison . | . . . . Intercept . | . . . . Searches Triggered . | . . . . Construction Impeded . | . . . . Haulers Reinforced . | . . . . Active Scanning Responses . | . . . . Cargo Convoy Interrupts . | . . . . Stealth | -11 -10 -10 -10 --------- Run | Yrd Mat Min Exi Distress Signals . | . . . . Communications Jammed . | . . . . Distress Signals . | . . . . Times Spotted 25 | . 11 8 6 Peak Tracking Total 9 | . 3 3 9 Tactical Retreats 1 | . 1 . . Traps | -11 -10 -10 -10 ------- Run | Yrd Mat Min Exi Traps Triggered 1 | . 1 . . Indirectly . | . . . . Trap Hack Attempts . | . . . . Triggered . | . . . . Disarmed . | . . . . Reprogrammed . | . . . . Reused . | . . . . Traps Extracted . | . . . . Installed . | . . . . Triggered . | . . . . Machines | -11 -10 -10 -10 ---------- Run | Yrd Mat Min Exi Machines Disabled . | . . . . Max in Single Turn . | . . . . Machines Repaired . | . . . . Machines Dismantled . | . . . . Machines Sabotaged . | . . . . Overloaded Fab Kills . | . . . . Hacking | -11 -10 -10 -10 --------- Run | Yrd Mat Min Exi Machines Accessed 1 | . 1 . . Terminals 1 | . 1 . . Fabricators . | . . . . Repair Stations . | . . . . Recycling Units . | . . . . Scanalyzers . | . . . . Garrison Access . | . . . . Total Hacks 1 | . 1 . . Successful 1 | . 1 . . Failed . | . . . . Catastrophic . | . . . . Database Lockouts . | . . . . Manual 1 | . 1 . . Terminals 1 | . 1 . . Fabricators . | . . . . Repair Stations . | . . . . Recycling Units . | . . . . Scanalyzers . | . . . . Garrison Access . | . . . . Terminal Hacks . | . . . . Fabricator Hacks . | . . . . Repair Station Hacks . | . . . . Recycling Unit Hacks . | . . . . Scanalyzer . | . . . . Garrison Access Hacks . | . . . . Unauthorized Hacks 1 | . 1 . . Terminals 1 | . 1 . . Assimilate 1 | . 1 . . Fabricators . | . . . . Repair Stations . | . . . . Recycling Units . | . . . . Scanalyzers . | . . . . Garrison Access . | . . . . Data Cores Recovered . | . . . . Used . | . . . . Hacking Detections . | . . . . Full Trace Events . | . . . . Feedback Events . | . . . . Feedback Blocked . | . . . . Robot Schematics Acquired . | . . . . Robots Built . | . . . . Authchips . | . . . . Time . | . . . . Total Robot Build Rating . | . . . . Part Schematics Acquired . | . . . . Parts Built . | . . . . Authchips . | . . . . Time . | . . . . Total Part Build Rating . | . . . . Part Studies Acquired . | . . . . Parts Repaired . | . . . . Time . | . . . . Parts Recycled . | . . . . Recycled Matter . | . . . . Retrieved Matter . | . . . . Retrieved Components . | . . . . Parts Scanalyzed . | . . . . Part Schematics Acquired . | . . . . Parts Damaged . | . . . . Bothacking | -11 -10 -10 -10 ------------ Run | Yrd Mat Min Exi Used RIF Installer . | . . . . Robots Hacked . | . . . . Non-combat . | . . . . Combat . | . . . . Robot Hacks Applied . | . . . . Relay Couplers Released . | . . . . Fabnet Peak Effective % . | . . . . Robots Rewired 1 | . . 1 . Allies Hacked . | . . . . Hacks Repelled . | . . . . Allies | -11 -10 -10 -10 -------- Run | Yrd Mat Min Exi Total Allies 1 | . . 1 . Largest Group 1 | . . 1 . Highest-Rated Group 8 | . . 8 . Highest-Rated Ally 8 | . . 8 . Total Orders . | . . . . Ally Attacks . | . . . . Total Damage . | . . . . Kills . | . . . . Allies Corrupted . | . . . . Allies Melted . | . . . . Intel | -11 -10 -10 -10 ------- Run | Yrd Mat Min Exi Active Infowar (turns) 1271 | 16 364 704 187 Seismic 1271 | 16 364 704 187 Robot Analysis Total . | . . . . Derelict Logs Recovered 1 | . . 1 . Drone Launches . | . . . . Drone Recoveries . | . . . . Exploration | -11 -10 -10 -10 ------------- Run | Yrd Mat Min Exi Turns Passed 1404 | 148 364 704 188 Spaces Moved 530 | 86 137 270 37 Core 6 | 5 . . 1 Treads 524 | 81 137 270 36 Legs . | . . . . Wheels . | . . . . Hover . | . . . . Flight . | . . . . Fastest Speed 50 | 50 160 160 480 Average Speed 215 | 153 160 222 504 Slowest Speed 1400 | 160 160 480 1400 Overloaded Moves . | . . . . Propulsion Burnouts . | . . . . Robots Hopped . | . . . . Potential Cave-ins . | . . . . Cave-ins Triggered . | . . . . Exploration Rate (%) 23 | 4 27 53 11 Regions Visited 3 Branch Regions 2 Pre-discovered Areas . | . . . . Known Exits Taken 1 | . . 1 . Unknown Exits Taken 2 | 1 1 . . Scrap Searched 1 | . . 1 . Spaces Dug . | . . . . Terrain Destroyed . | . . . . Melee . | . . . . Projectile . | . . . . AOE . | . . . . Terrain Rammed . | . . . . Walls Destroyed . | . . . . Machines Disabled . | . . . . Actions | -11 -10 -10 -10 --------- Run | Yrd Mat Min Exi Total 677 | 97 205 330 45 Wait 17 | . 2 15 . Move 527 | 85 136 269 37 Hop . | . . . . Pick Up 14 | 3 9 1 1 Fast Attach 9 | 6 2 1 . Attach 5 | 1 1 3 . Detach . | . . . . Swap 7 | 1 1 5 . Drop 13 | . 5 6 2 Fire 82 | 1 49 27 5 Melee . | . . . . Ram . | . . . . Kick . | . . . . Crush 1 | . . 1 . Escape Stasis . | . . . . Rewire 2 | . . 2 . Trap . | . . . . Miscellaneous . | . . . . Route ------- -11/Scrapyard -10/Materials (discovered 2 exits: [*Mat] / [*Min]) -10/Mines -10/Exiles History --------- Turn | Location | Event 30 | -11/Scrapyard | Discovered new exit (range 16) 149 | -11/Scrapyard | Entered Materials 314 | -10/Materials | Build established: Mutant 454 | -10/Materials | Discovered new exit (range 10) 481 | -10/Materials | Discovered new exit (range 15) 513 | -10/Materials | Entered Mines 523 | -10/Mines | Met a Derelict bent on vengeance 599 | -10/Mines | Assembled infested the area 604 | -10/Mines | Assisted by a Guerilla fighting off Assembled 639 | -10/Mines | Identified exit to Exiles 777 | -10/Mines | A weapon hastily lodged in a ceiling crevice suddenly fell to the ground 1087 | -10/Mines | Core integrity fell below 50% 1198 | -10/Mines | Deemed a non-threat by the Exiles lab entrance 1217 | -10/Mines | Entered Exiles 1359 | -10/Exiles | Met 8R-AWN 1393 | -10/Exiles | Attacked by the Exiles 1398 | -10/Exiles | Core integrity fell below 20% 1405 | -10/Exiles | Destroyed by as-07836 with Assembled Maul Last Messages --------------- HV Slug penetrates Wall. Penetrated by HV Slug. HV Slug penetrates Earth. Penetrated by HV Slug. Critical hit (Destroy). Lgt. Assault Rifle destroyed. HV Slug penetrates Earth. 8R-AWN suffers critical hit (Destroy). HV Slug penetrates Wall. Penetrated by HV Slug. HV Slug penetrates Earth. Wall collapses. Penetrated by HV Slug. Critical hit (Destroy). Seismic Detector destroyed. HV Slug penetrates Wall. Penetrated by HV Slug. Critical hit (Destroy). Lgt. Assault Rifle destroyed. HV Slug penetrates Wall. Map ----- +----------------------------------------------------+ | ?????????????????????????????????????????????????? | | ?????????????????????????????????????????????????? | | ?????????????????????????????????????????????????? | | ?????????????????????????????????????????????????? | | ?????????????????????????????????????????????????? | | ?????????????????????????????????????????????????? | | ?????????????????????????????????????????????????? | | ?????????????????????????????????????????????????? | | ?????????????????????????????????????????????????? | | ?????????????????????????????????????????????????? | | ?????????????????????????????????????????????????? | | ?????????????????????????????????????????????????? | | ?????????????????????????????????????????????????? | | ?????????????????????????????????????????????????? | | ?????????????????????????????????????????????????? | | ?????????????????????????????????????????????????? | | ?????????????????????????????????????????????????? | | ?????????????????????????????????????????????????? | | ????????????????????????????????????????????? ???? | | ????????????????????????????????????????????# ?? | | ???????????????????????????????????????????# ## | | ??????????????????????????????????????????# # | | ??????????????????????#####???????????????# # | | ?????????????????????##" #??????????????## ? | | ?????????????????????#" g #?????????????## #?? | | ????????????????????##" @##????????????# #?? | | ??????????????????### a ###????????### #??? | | ??????????????????# ########## #??? | | ??????????????????# aaa #""""## #???? | | ?????????????????# * ##??? | | ?????????????? #; * #??? | | ???????????? ##;# ##?? | | ???????????? a ""?##""" "#### ### | | ???????????? #"""???####;;#??#### * # | | ????????????? ?####???????# #?????##### * | | ????????????? ?????????????? ?????????### | | ?????????????????????????????##???????????### | | ????????????????????????????????????????????### | | ?????????????????????????????????????????????#" | | ?????????????????????????????????????????????#### | | ????????????????????????????????????????????????# | | ????????????????????????????????????????????????## | | ?????????????????????????????????????????????????# | | ?????????????????????????????????????????????????? | | ?????????????????????????????????????????????????? | | ?????????????????????????????????????????????????? | | ?????????????????????????????????????????????????? | | ?????????????????????????????????????????????????? | | ?????????????????????????????????????????????????? | | ?????????????????????????????????????????????????? | +----------------------------------------------------+ Best States ------------- Heat Dissipation 25 Energy Generation 18 Energy Capacity 250 Matter Stores 300 Matter Capacity 300 Sight Range 16 Terrain Scan Density 10 Evasion (%) 40 Recoil Reduction 2 Item Schematics ----------------- None Robot Schematics ------------------ None Fabricated ------------ Nothing Repaired ---------- Nothing Studied --------- None Alien Tech Used ----------------- None Achievements -------------- A New Friend Challenges ------------ None Game ------ Seed ChromionSapperDirector Manual? 0 Play Time 00:08:24 Cumulative 32.4 hours Start 2026.04.27 @ 17:40:23 End 2026.04.27 @ 17:48:17 Sessions 1 Manual Loads 0 Difficulty Rogue Special Mode None Game No. 64 Rogue 64 Adventurer 0 Explorer 0 Win Type - Total 0 Types 0/0/0/0/0/0/0/0/0/0 Lore% 24 Gallery% 26 Achievement% 24 Wizard Run 0 Options --------- Layout 1 ASCII 0 Keyboard 0 Movement Mouse Keybinds 0 Fullscreen 1 Font 32/SmallcapsGlow Map View 50x35 Zoom Use 0% Tactical HUD 0 Map Filters NONE Filters NONE Steam 1 RUN: f288841e-8514-458d-a8bb-49ce2b2e73e5